bitfinex-derivatives/quotes_BTCF0:USTF0_20250108
["timestamp","ask_amount","ask_price","bid_price","bid_amount"]
[1736329311997,0.14030102,95799.0,95798.0,0.4250904]
[1736329313094,0.21815865,95806.0,95798.0,0.4250904]
[1736329313295,0.21815865,95806.0,95805.0,0.052202]
[1736329313896,0.00445092,95806.0,95805.0,0.052202]
[1736329314290,0.00945092,95806.0,95805.0,0.052202]
[1736329314494,0.005,95806.0,95805.0,0.052202]
[1736329315095,0.005,95806.0,95805.0,0.10277968]
[1736329315290,0.006,95806.0,95805.0,0.052202]
[1736329315500,0.065514,95820.0,95801.0,0.0854]
[1736329315799,0.065514,95820.0,95819.0,0.412994]
[1736329316705,0.24820666,95833.0,95819.0,0.3608]
[1736329317003,0.24820666,95833.0,95829.0,0.052188]
[1736329317207,0.24820666,95833.0,95829.0,0.520028]
[1736329317595,0.1,95840.0,95829.0,0.46784]
[1736329317796,0.005,95833.0,95831.0,0.052187]
[1736329318701,0.006,95833.0,95831.0,0.052188]
[1736329320595,0.005,95833.0,95831.0,0.052188]
[1736329321605,0.16019662,95838.0,95837.0,0.052185]
[1736329321797,0.1,95840.0,95830.0,0.3608]
[1736329322715,0.1,95840.0,95839.0,0.052183]
[1736329323606,0.1,95840.0,95839.0,0.412983]
[1736329324601,0.105,95840.0,95831.0,0.052187]
[1736329324808,0.0815,95839.0,95831.0,0.052187]
[1736329325001,0.1252,95839.0,95831.0,0.052187]
[1736329325196,0.3608,95832.0,95829.0,0.58468035]
[1736329325391,0.3608,95832.0,95829.0,0.47957446]
[1736329327006,0.3608,95832.0,95829.0,0.53176246]
[1736329327200,0.3608,95832.0,95831.0,0.052188]
[1736329328204,0.46188001,95840.0,95839.0,0.052183]
[1736329328507,0.4608,95840.0,95839.0,0.052183]
[1736329328892,0.1,95840.0,95839.0,0.412983]
[1736329329600,0.1,95860.0,95839.0,0.412983]
[1736329329799,0.1,95860.0,95859.0,0.052173]
[1736329332397,0.104,95860.0,95850.0,0.15672289]
[1736329332605,0.104,95860.0,95850.0,0.01129809]
[1736329332896,0.104,95860.0,95846.0,0.052179]
[1736329332897,0.3608,95853.0,95846.0,0.052179]
[1736329333093,0.0835,95852.0,95846.0,0.052179]
[1736329333504,0.0434,95851.0,95846.0,0.052179]
[1736329334397,0.0434,95851.0,95840.0,0.11586698]
[1736329334605,0.0434,95851.0,95850.0,0.052177]
[1736329335002,0.0454,95851.0,95850.0,0.052177]
[1736329335900,0.0464,95851.0,95850.0,0.052177]
[1736329337609,0.0464,95851.0,95850.0,0.06325336]
[1736329340214,0.003,95851.0,95850.0,0.06325336]
[1736329341709,0.1,95860.0,95850.0,0.06325336]
[1736329341710,0.1,95860.0,95858.0,0.052173]
[1736329343404,0.1,95860.0,95858.0,0.06352701]
[1736329344203,0.104,95860.0,95858.0,0.06352701]
[1736329345814,0.104,95860.0,95858.0,0.01135401]
[1736329346010,0.104,95860.0,95856.0,0.3608]
[1736329347614,0.103,95860.0,95856.0,0.3608]
[1736329347809,0.103,95860.0,95856.0,0.37233931]
[1736329348712,0.18611924,95859.0,95856.0,0.37233931]
[1736329349121,0.54691924,95859.0,95856.0,0.01153931]
[1736329349316,0.54691924,95859.0,95853.0,0.052175]
[1736329349518,0.54691924,95859.0,95854.0,0.052175]
[1736329349715,0.54691924,95859.0,95847.0,0.052179]
[1736329350219,0.18611924,95858.0,95847.0,0.052179]
[1736329350818,0.18611924,95858.0,95848.0,0.10454589]
[1736329351610,0.18611924,95858.0,95851.0,0.052177]
[1736329352120,0.06763879,95858.0,95851.0,0.052177]
[1736329352823,0.06763879,95858.0,95857.0,0.052174]
[1736329353019,0.002,95858.0,95857.0,0.052174]
[1736329354718,0.003,95858.0,95850.0,0.052177]
[1736329354924,0.003,95858.0,95857.0,0.052174]
[1736329357127,0.1,95860.0,95859.0,0.052173]
[1736329357713,0.16544528,95860.0,95859.0,0.052173]
[1736329359929,0.16944528,95860.0,95859.0,0.052173]
[1736329361235,0.16944528,95860.0,95859.0,0.519773]
[1736329361429,0.21691868,95864.0,95863.0,0.05217]
[1736329362432,0.18680738,95872.0,95863.0,0.05217]
[1736329362630,0.3608,95865.0,95859.0,0.47919207]
[1736329362829,0.3608,95865.0,95859.0,0.47863207]
[1736329363335,0.004,95864.0,95859.0,0.47863207]
[1736329364034,0.052171,95862.0,95859.0,0.47863207]
[1736329364333,0.052172,95860.0,95859.0,0.4676]
[1736329365530,0.3608,95862.0,95835.0,0.052185]
[1736329365531,0.052179,95847.0,95835.0,0.052185]
[1736329365732,0.3608,95845.0,95835.0,0.052185]
[1736329366231,0.3608,95845.0,95833.0,0.46816]
[1736329366525,0.052181,95844.0,95833.0,0.4676]
[1736329366836,0.3608,95845.0,95833.0,0.4676]
[1736329366837,0.052182,95843.0,95833.0,0.4676]
[1736329367537,0.412985,95836.0,95833.0,0.47878799]
[1736329368037,0.412985,95836.0,95833.0,0.4686]
[1736329372533,0.3608,95836.0,95833.0,0.4686]
[1736329372836,0.052181,95844.0,95833.0,0.4686]
[1736329374043,0.052183,95839.0,95833.0,0.4686]
[1736329374239,0.18642456,95835.0,95833.0,0.4686]
[1736329375343,0.18642456,95834.0,95833.0,0.4686]
[1736329376243,0.23861056,95834.0,95833.0,0.4686]
[1736329376741,0.052186,95834.0,95833.0,0.4686]
[1736329389253,0.052186,95834.0,95833.0,0.4676]
[1736329390050,0.3608,95838.0,95837.0,0.052185]
[1736329391153,0.05218,95847.0,95837.0,0.052185]
[1736329391452,0.1865987,95840.0,95837.0,0.15673089]
[1736329391653,0.1865987,95840.0,95837.0,0.052185]
[1736329392645,0.05218,95847.0,95837.0,0.052185]
[1736329392951,0.3608,95849.0,95840.0,0.052183]
[1736329393942,0.06408184,95848.0,95840.0,0.052183]
[1736329394346,0.06408184,95848.0,95837.0,0.10554589]
[1736329394553,0.06408184,95848.0,95844.0,0.052181]
[1736329394857,0.06408184,95847.0,95845.0,0.0865]
[1736329396442,0.35179276,95849.0,95848.0,0.052179]
[1736329398153,0.35279276,95849.0,95848.0,0.052179]
[1736329399256,0.35279276,95849.0,95848.0,0.06331553]
[1736329401559,0.001,95849.0,95848.0,0.06331553]
[1736329407966,0.001,95849.0,95848.0,0.01113653]
[1736329408158,0.001,95849.0,95845.0,0.3608]
[1736329408757,0.001,95849.0,95845.0,0.37168798]
[1736329411361,0.001,95849.0,95845.0,0.42386798]
[1736329412262,0.001,95849.0,95846.0,0.052179]
[1736329415368,0.001,95849.0,95845.0,0.01088798]
[1736329415562,0.001,95849.0,95847.0,0.052179]
[1736329416161,0.06392713,95848.0,95847.0,0.052179]
[1736329417367,0.06492713,95848.0,95847.0,0.052179]
[1736329425173,0.06492713,95848.0,95847.0,0.06327181]
[1736329427574,0.06492713,95848.0,95847.0,0.01109281]
[1736329427785,0.06492713,95848.0,95841.0,0.3608]
[1736329427980,0.052181,95843.0,95841.0,0.3608]
[1736329428781,0.0455,95842.0,95841.0,0.37143976]
[1736329428978,0.4063,95842.0,95841.0,0.01063976]
[1736329429277,0.052183,95839.0,95830.0,0.15673389]
[1736329429480,0.0887,95838.0,95830.0,0.15673389]
[1736329429872,0.0887,95838.0,95823.0,0.412992]
[1736329429873,0.052185,95836.0,95823.0,0.412992]
[1736329430073,0.3608,95834.0,95833.0,0.47852367]
[1736329431474,0.42472713,95834.0,95833.0,0.47852367]
[1736329432682,0.42472713,95834.0,95833.0,0.47952367]
[1736329433583,0.42472713,95834.0,95833.0,0.47852367]
[1736329438976,0.06392713,95834.0,95833.0,0.47852367]
[1736329441284,0.01611313,95835.0,95833.0,0.47852367]
[1736329441487,0.45054001,95838.0,95833.0,0.47852367]
[1736329441674,0.4495,95838.0,95833.0,0.47852367]
[1736329441875,0.052186,95835.0,95833.0,0.47852367]
[1736329442275,0.3608,95834.0,95833.0,0.01092367]
[1736329442472,0.3608,95834.0,95816.0,0.0883]
[1736329442676,0.3608,95824.0,95819.0,0.052194]
[1736329444177,0.3608,95824.0,95819.0,0.002]
[1736329446486,0.3608,95834.0,95820.0,0.3608]
[1736329446487,0.052187,95833.0,95820.0,0.3608]
[1736329446679,0.3608,95834.0,95828.0,0.052189]
[1736329446989,0.21691868,95842.0,95829.0,0.0465]
[1736329447191,0.21691868,95842.0,95840.0,0.052183]
[1736329447488,0.052179,95848.0,95836.0,0.3608]
[1736329447684,0.052179,95848.0,95838.0,0.10454589]
[1736329447888,0.052179,95848.0,95836.0,0.3608]
[1736329449089,0.052179,95848.0,95838.0,0.10454589]
[1736329449090,0.18686875,95839.0,95838.0,0.10454589]
[1736329449391,0.18686875,95839.0,95836.0,0.3608]
[1736329449792,0.18686875,95839.0,95836.0,0.3618]
[1736329450589,0.18686875,95838.0,95836.0,0.3618]
[1736329451894,0.18686875,95838.0,95837.0,0.052185]
[1736329452690,0.06293784,95847.0,95837.0,0.052185]
[1736329452896,0.06293784,95847.0,95837.0,0.15673089]
[1736329453786,0.06293784,95847.0,95837.0,0.15773089]
[1736329454196,0.06293784,95846.0,95837.0,0.15773089]
[1736329455097,0.06293784,95845.0,95837.0,0.15773089]
[1736329456291,0.06293784,95844.0,95837.0,0.62441089]
[1736329456497,0.06293784,95844.0,95837.0,0.62541089]
[1736329457892,0.06293784,95847.0,95837.0,0.62541089]
[1736329459494,0.06293784,95847.0,95837.0,0.46868]
[1736329459696,0.052182,95841.0,95837.0,0.46768]
[1736329459894,0.052182,95841.0,95837.0,0.46868]
[1736329460794,0.06293784,95840.0,95837.0,0.46868]
[1736329474217,0.06293784,95846.0,95837.0,0.46868]
[1736329477923,0.13957614,95846.0,95837.0,0.46868]
[1736329478720,0.052181,95845.0,95837.0,0.46868]
[1736329479018,0.7216,95845.0,95837.0,0.46868]
[1736329479728,0.052184,95839.0,95837.0,0.46868]
[1736329479916,0.052184,95839.0,95837.0,0.001]
[1736329481141,0.052184,95839.0,95833.0,0.052187]
[1736329481332,0.06293784,95838.0,95833.0,0.052187]
[1736329481532,0.13958667,95838.0,95833.0,0.052187]
[1736329482639,0.06293784,95838.0,95833.0,0.052187]
[1736329483335,0.052185,95836.0,95830.0,0.06862441]
[1736329483531,0.052185,95836.0,95829.0,0.05717165]
[1736329484232,0.052185,95836.0,95833.0,0.001]
[1736329484633,0.06293784,95835.0,95833.0,0.001]
[1736329484841,0.06293784,95835.0,95829.0,0.05817165]
[1736329487446,0.06293784,95835.0,95833.0,0.001]
[1736329488149,0.06293784,95835.0,95829.0,0.05817165]
[1736329489442,0.06293784,95835.0,95833.0,0.052186]
[1736329489642,0.06293784,95835.0,95834.0,0.0886]
[1736329490935,0.21835048,95841.0,95834.0,0.140786]
[1736329491249,0.21835048,95841.0,95834.0,0.141786]
[1736329492356,0.06293784,95840.0,95834.0,0.141786]
[1736329493148,0.06293784,95840.0,95830.0,0.06862441]
[1736329493450,0.28128832,95842.0,95834.0,0.001]
[1736329493745,0.052183,95840.0,95834.0,0.001]
[1736329493950,0.052184,95839.0,95834.0,0.001]
[1736329494252,0.28128832,95842.0,95834.0,0.001]
[1736329494448,0.052186,95835.0,95834.0,0.001]
[1736329494837,0.052186,95835.0,95829.0,0.01067165]
[1736329495044,0.052186,95835.0,95834.0,0.001]
[1736329495445,0.19177246,95835.0,95834.0,0.001]
[1736329497254,0.19177246,95835.0,95828.0,0.37414869]
[1736329497556,0.052187,95833.0,95828.0,0.37414869]
[1736329497961,0.052189,95829.0,95828.0,0.37414869]
[1736329498552,0.052189,95829.0,95828.0,0.37514869]
[1736329498753,0.11512684,95829.0,95828.0,0.37514869]
[1736329499054,0.11512684,95829.0,95828.0,0.01434869]
[1736329500256,0.19178473,95829.0,95828.0,0.01334869]
[1736329500557,0.19178473,95829.0,95828.0,0.001]
[1736329501649,0.06293784,95829.0,95819.0,0.06862441]
[1736329501857,0.412992,95824.0,95823.0,0.46768]
[1736329502748,0.412992,95824.0,95823.0,0.48149945]
[1736329503055,0.47592984,95824.0,95823.0,0.48149945]
[1736329504351,0.47592984,95824.0,95823.0,0.48249945]
[1736329508160,0.06293784,95824.0,95823.0,0.48249945]
[1736329509263,0.06293784,95829.0,95823.0,0.48249945]
[1736329514366,0.06293784,95829.0,95825.0,0.052191]
[1736329514566,0.06293784,95829.0,95826.0,0.0948]
[1736329514767,0.21835048,95834.0,95826.0,0.0948]
[1736329515465,0.052187,95833.0,95826.0,0.0948]
[1736329515663,0.052188,95830.0,95826.0,0.0948]
[1736329517265,0.06293784,95829.0,95826.0,0.0948]
[1736329520564,0.052191,95826.0,95823.0,0.48205945]
[1736329520870,0.052191,95826.0,95823.0,0.48149945]
[1736329521763,0.052191,95826.0,95823.0,0.48249945]
[1736329522870,0.06293784,95825.0,95823.0,0.48249945]
[1736329523561,0.06293784,95825.0,95823.0,0.53469145]
[1736329525669,0.06293784,95833.0,95823.0,0.53469145]
[1736329526057,0.06293784,95833.0,95823.0,0.60331586]
[1736329526569,0.052187,95832.0,95823.0,0.60331586]
[1736329527071,0.06293784,95833.0,95826.0,0.05219]
[1736329527271,0.06293784,95833.0,95827.0,0.1386]
[1736329528463,0.11512384,95834.0,95827.0,0.1386]
[1736329528664,0.11512384,95834.0,95827.0,0.1396]
[1736329529075,0.052187,95833.0,95827.0,0.1396]
[1736329529772,0.11512484,95833.0,95827.0,0.1396]
[1736329530664,0.11512484,95833.0,95827.0,0.1386]
[1736329531060,0.06293784,95832.0,95827.0,0.1386]
[1736329533777,0.052189,95830.0,95826.0,0.05219]
[1736329533963,0.052192,95825.0,95823.0,0.48205945]
[1736329534269,0.052192,95825.0,95823.0,0.48149945]
[1736329534468,0.0912,95824.0,95823.0,0.48149945]
[1736329534675,0.0912,95824.0,95823.0,0.46768]
[1736329535173,0.23078816,95824.0,95823.0,0.46768]
[1736329535466,0.23078816,95824.0,95819.0,0.01316841]
[1736329535674,0.052196,95816.0,95810.0,0.06862441]
[1736329536060,0.052196,95816.0,95806.0,0.07018989]
[1736329537369,0.052196,95816.0,95815.0,0.00208608]
[1736329537566,0.19178416,95816.0,95815.0,0.00208608]
[1736329538367,0.11513384,95816.0,95815.0,0.00208608]
[1736329540070,0.052196,95816.0,95815.0,0.00208608]
[1736329540967,0.11513384,95816.0,95815.0,0.00208608]
[1736329551885,0.11513384,95816.0,95815.0,0.00208608]
[1736329564199,0.19179778,95816.0,95815.0,0.00208608]
[1736329566700,0.13960178,95816.0,95815.0,0.00208608]
[1736329566993,0.13960178,95816.0,95815.0,0.05428208]
[1736329567891,0.21853919,95816.0,95815.0,0.05428208]
[1736329568910,0.06293784,95816.0,95815.0,0.05428208]
[1736329569194,0.00384716,95816.0,95815.0,0.41508208]
[1736329569398,0.21853919,95821.0,95815.0,0.41508208]
[1736329569399,0.18581635,95821.0,95820.0,0.052194]
[1736329570393,0.052189,95829.0,95820.0,0.052194]
[1736329570993,0.052189,95829.0,95821.0,0.052193]
[1736329571502,0.052189,95829.0,95822.0,0.0466]
[1736329572903,0.052189,95829.0,95822.0,0.098792]
[1736329573903,0.052187,95832.0,95823.0,0.052192]
[1736329574806,0.052187,95832.0,95823.0,0.096592]
[1736329575109,0.052187,95832.0,95823.0,0.098592]
[1736329576305,0.3608,95836.0,95823.0,0.0464]
[1736329576500,0.3608,95836.0,95826.0,0.06862441]
[1736329578314,0.3608,95835.0,95826.0,0.07062441]
[1736329578502,0.052185,95837.0,95826.0,0.07062441]
[1736329579116,0.3608,95833.0,95826.0,0.07062441]
[1736329579910,0.052185,95837.0,95826.0,0.07062441]
[1736329580109,0.3608,95833.0,95826.0,0.07062441]
[1736329580310,0.052185,95837.0,95826.0,0.07062441]
[1736329580511,0.3608,95833.0,95826.0,0.07062441]
[1736329580820,0.3608,95833.0,95826.0,0.06862441]
[1736329581018,0.06231756,95832.0,95826.0,0.07062441]
[1736329581218,0.06231756,95832.0,95826.0,0.002]
[1736329581612,0.052188,95831.0,95826.0,0.002]
[1736329582219,0.11450556,95831.0,95826.0,0.002]
[1736329583607,0.06231756,95830.0,95825.0,0.052191]
[1736329583811,0.06231756,95830.0,95826.0,0.002]
[1736329584515,0.06231756,95830.0,95825.0,0.052191]
[1736329584815,0.06231756,95830.0,95826.0,0.002]
[1736329585321,0.06231756,95830.0,95825.0,0.052191]
[1736329585521,0.06231756,95830.0,95826.0,0.002]
[1736329587921,0.06231756,95830.0,95823.0,0.46832]
[1736329588222,0.06231756,95830.0,95826.0,0.002]
[1736329588915,0.06231756,95830.0,95827.0,0.05219]
[1736329589718,0.06231756,95832.0,95827.0,0.05219]
[1736329591123,0.06231756,95831.0,95827.0,0.05219]
[1736329591313,0.06231756,95831.0,95824.0,0.0881]
[1736329591509,0.06231756,95831.0,95829.0,0.052188]
[1736329592118,0.1,95840.0,95830.0,0.052188]
[1736329592321,0.1,95840.0,95830.0,0.12081241]
[1736329593017,0.1,95840.0,95831.0,0.052187]
[1736329593425,0.1,95840.0,95830.0,0.06862441]
[1736329593626,0.06225226,95839.0,95833.0,0.052187]
[1736329595324,0.06225226,95838.0,95833.0,0.052187]
[1736329595623,0.06225226,95838.0,95833.0,0.053187]
[1736329596124,0.11443626,95838.0,95833.0,0.001]
[1736329596626,0.06225226,95837.0,95833.0,0.001]
[1736329597318,0.3608,95834.0,95833.0,0.001]
[1736329597722,0.052188,95831.0,95830.0,0.01215294]
[1736329597917,0.3608,95834.0,95820.0,0.06862441]
[1736329598114,0.052196,95817.0,95811.0,0.82916]
[1736329598317,0.4549,95816.0,95811.0,0.46892]
[1736329598519,0.4549,95816.0,95811.0,0.46828]
[1736329598731,0.5011,95816.0,95811.0,0.46828]
[1736329599422,0.56335226,95816.0,95813.0,0.01224233]
[1736329601232,0.56335226,95816.0,95815.0,0.00208608]
[1736329605228,0.42305226,95816.0,95815.0,0.00208608]
[1736329607735,0.3608,95816.0,95815.0,0.00208608]
[1736329611242,0.55930182,95816.0,95815.0,0.00208608]
[1736329612137,0.55930182,95816.0,95811.0,0.46828]
[1736329612443,0.052198,95812.0,95811.0,0.46772]
[1736329613427,0.11459982,95812.0,95811.0,0.46772]
[1736329613632,0.47539982,95812.0,95811.0,0.46772]
[1736329613839,0.42320182,95812.0,95805.0,0.0117839]
[1736329614042,0.052201,95807.0,95805.0,0.0117839]
[1736329615246,0.052201,95807.0,95806.0,0.00456548]
[1736329616144,0.11460282,95807.0,95806.0,0.00456548]
[1736329616737,0.47540282,95807.0,95806.0,0.00456548]
[1736329622741,0.47540282,95807.0,95806.0,0.003]
[1736329627150,0.55208109,95807.0,95806.0,0.003]
[1736329627539,0.052208,95794.0,95792.0,0.052209]
[1736329628347,0.06240182,95793.0,95792.0,0.052209]
[1736329628546,0.06240182,95793.0,95792.0,0.055209]
[1736329628854,0.06240182,95793.0,95792.0,0.06670275]
[1736329629348,0.052208,95794.0,95792.0,0.06370275]
[1736329629552,0.052208,95794.0,95792.0,0.06670275]
[1736329630364,0.052208,95794.0,95792.0,0.01449375]
[1736329630957,0.052208,95794.0,95792.0,0.01149375]
[1736329631255,0.052208,95794.0,95792.0,0.002]
[1736329632160,0.3608,95807.0,95792.0,0.002]
[1736329632359,0.3608,95807.0,95800.0,0.052204]
[1736329632559,0.3608,95807.0,95801.0,0.0913]
[1736329632855,0.21797867,95808.0,95801.0,0.0913]
[1736329633157,0.06236392,95806.0,95801.0,0.0913]
[1736329633350,0.11456592,95806.0,95801.0,0.0913]
[1736329634659,0.06236392,95805.0,95801.0,0.0913]
[1736329635259,0.052203,95803.0,95801.0,0.0943]
[1736329635560,0.052203,95803.0,95801.0,0.003]
[1736329636346,0.3608,95802.0,95801.0,0.003]
[1736329636550,0.3608,95802.0,95801.0,0.01470378]
[1736329636751,0.3608,95802.0,95801.0,0.003]
[1736329637049,0.3608,95802.0,95786.0,0.00156598]
[1736329637254,0.3608,95793.0,95786.0,0.00156598]
[1736329637560,0.052212,95787.0,95786.0,0.00156598]
[1736329639256,0.11457592,95787.0,95786.0,0.00156598]
[1736329639665,0.11457592,95787.0,95780.0,0.10467574]
[1736329639960,0.06236392,95787.0,95786.0,0.002]
[1736329640555,0.052208,95794.0,95786.0,0.002]
[1736329640956,0.052208,95794.0,95787.0,0.0448]
[1736329641157,0.052208,95794.0,95788.0,0.0957]
[1736329641961,0.06246027,95793.0,95788.0,0.0957]
[1736329642865,0.06246027,95793.0,95788.0,0.0977]
[1736329643062,0.052205,95800.0,95791.0,0.052209]
[1736329643063,0.06246027,95792.0,95791.0,0.052209]
[1736329645768,0.06246027,95792.0,95791.0,0.06585606]
[1736329655169,0.02554848,95792.0,95791.0,0.06585606]
[1736329655571,0.1,95800.0,95799.0,0.052205]
[1736329657774,0.1,95800.0,95799.0,0.054205]
[1736329657979,0.1,95800.0,95799.0,0.002]
[1736329660481,0.1473,95800.0,95799.0,0.002]
[1736329660685,0.1473,95800.0,95794.0,0.46848]
[1736329660878,0.199505,95800.0,95799.0,0.002]
[1736329661479,0.199505,95800.0,95794.0,0.46848]
[1736329661783,0.052206,95798.0,95794.0,0.46792]
[1736329661984,0.052207,95796.0,95794.0,0.46792]
[1736329663487,0.27018567,95796.0,95794.0,0.46792]
[1736329663987,0.27018567,95796.0,95794.0,0.46992]
[1736329664579,0.27018567,95796.0,95794.0,0.46792]
[1736329664779,0.27018567,95796.0,95794.0,0.46992]
[1736329665288,0.43748391,95795.0,95794.0,0.002]
[1736329666091,0.49841103,95795.0,95794.0,0.002]
[1736329667185,0.49841103,95795.0,95791.0,0.01164706]
[1736329667392,0.49841103,95795.0,95794.0,0.002]
[1736329668303,0.052209,95792.0,95791.0,0.002]
[1736329669604,0.18982003,95792.0,95791.0,0.002]
[1736329671307,0.052212,95786.0,95784.0,0.052213]
[1736329672302,0.06092712,95785.0,95784.0,0.052213]
[1736329673102,0.06092712,95785.0,95780.0,0.11608965]
[1736329673304,0.11314012,95785.0,95780.0,0.11608965]
[1736329674108,0.052214,95784.0,95780.0,0.11608965]
[1736329674299,0.11314112,95784.0,95780.0,0.0114244]
[1736329674607,0.11114112,95784.0,95779.0,0.3608]
[1736329675508,0.06092712,95783.0,95780.0,0.002]
[1736329676109,0.06092712,95783.0,95779.0,0.3628]
[1736329676701,0.06092712,95782.0,95779.0,0.3628]
[1736329677000,0.06092712,95782.0,95779.0,0.37386221]
[1736329677701,0.06092712,95782.0,95780.0,0.052216]
[1736329677904,0.06092712,95781.0,95780.0,0.052216]
[1736329678110,0.06092712,95781.0,95780.0,0.098716]
[1736329678504,0.06092712,95781.0,95780.0,0.100716]
[1736329680615,0.052211,95788.0,95780.0,0.100716]
[1736329681912,0.0607089,95787.0,95780.0,0.100716]
[1736329682912,0.0607089,95786.0,95780.0,0.100716]
[1736329683112,0.0607089,95786.0,95780.0,0.098716]
[1736329683315,0.0607089,95786.0,95780.0,0.100716]
[1736329683905,0.0607089,95787.0,95780.0,0.100716]
[1736329686912,0.0607089,95787.0,95780.0,0.0485]
[1736329687119,0.0607089,95787.0,95781.0,0.052215]
[1736329687420,0.27861763,95787.0,95781.0,0.052215]
[1736329688317,0.27861763,95787.0,95781.0,0.054215]
[1736329688715,0.21790873,95786.0,95781.0,0.054215]
[1736329691414,0.21790873,95784.0,95781.0,0.054215]
[1736329697627,0.21790873,95783.0,95781.0,0.054215]
[1736329698724,0.21790873,95784.0,95781.0,0.054215]
[1736329698943,0.21790873,95784.0,95781.0,0.052215]
[1736329699140,0.21790873,95784.0,95781.0,0.054215]
[1736329700759,0.21790873,95784.0,95781.0,0.052215]
[1736329700961,0.21790873,95784.0,95781.0,0.054215]
[1736329705249,0.13739533,95787.0,95781.0,0.054215]
[1736329706634,0.21822742,95782.0,95781.0,0.054215]
[1736329707733,0.0607089,95782.0,95781.0,0.054215]
[1736329708641,0.0607089,95782.0,95781.0,0.052215]
[1736329708932,0.0607089,95782.0,95781.0,0.054215]
[1736329709521,0.19751488,95783.0,95781.0,0.10438815]
[1736329709725,0.19751488,95783.0,95782.0,0.05017315]
[1736329710234,0.24820666,95790.0,95783.0,0.052214]
[1736329710434,0.24820666,95790.0,95789.0,0.413011]
[1736329712040,0.24820666,95790.0,95789.0,0.415011]
[1736329713967,0.07667731,95798.0,95789.0,0.3628]
[1736329714148,0.07667731,95798.0,95793.0,0.052208]
[1736329714655,0.45900797,95800.0,95793.0,0.052208]
[1736329714852,0.1473,95800.0,95793.0,0.052208]
[1736329717261,0.1473,95800.0,95793.0,0.054208]
[1736329720441,0.06048224,95799.0,95793.0,0.054208]
[1736329721336,0.06048224,95798.0,95793.0,0.054208]
[1736329722545,0.06048224,95797.0,95793.0,0.054208]
[1736329723976,0.06048224,95796.0,95793.0,0.054208]
[1736329724573,0.06048224,95796.0,95793.0,0.002]
[1736329725153,0.052207,95795.0,95793.0,0.002]
[1736329725538,0.11268924,95795.0,95793.0,0.002]
[1736329726245,0.3608,95794.0,95793.0,0.002]
[1736329726636,0.42128224,95794.0,95793.0,0.002]
[1736329726838,0.05221,95790.0,95789.0,0.01135195]
[1736329727037,0.42236225,95794.0,95780.0,0.06870024]
[1736329727236,0.052212,95787.0,95780.0,0.06870024]
[1736329727440,0.0899,95786.0,95780.0,0.06870024]
[1736329727645,0.0899,95786.0,95780.0,0.01081022]
[1736329727843,0.0899,95786.0,95776.0,0.58943724]
[1736329728043,0.0899,95786.0,95776.0,0.58887724]
[1736329728245,0.0899,95786.0,95776.0,0.53666024]
[1736329728445,0.0899,95786.0,95777.0,0.052217]
[1736329728644,0.0899,95786.0,95780.0,0.002]
[1736329729140,0.06048224,95785.0,95780.0,0.002]
[1736329730744,0.06048224,95785.0,95777.0,0.052217]
[1736329731740,0.06048224,95785.0,95780.0,0.002]
[1736329732746,0.06048224,95785.0,95777.0,0.054217]
[1736329734843,0.06048224,95785.0,95780.0,0.002]
[1736329737450,0.06048224,95785.0,95777.0,0.054217]
[1736329738344,0.06048224,95785.0,95780.0,0.002]
[1736329739046,0.06048224,95785.0,95777.0,0.052217]
[1736329739252,0.06048224,95785.0,95777.0,0.054217]
[1736329740763,0.06048224,95785.0,95780.0,0.002]
[1736329741254,0.18657292,95783.0,95780.0,0.002]
[1736329741455,0.18657292,95783.0,95777.0,0.052217]
[1736329741656,0.18657292,95783.0,95777.0,0.054217]
[1736329742351,0.18657292,95783.0,95777.0,0.052217]
[1736329742657,0.18657292,95783.0,95780.0,0.002]
[1736329744046,0.18657292,95783.0,95777.0,0.052217]
[1736329744246,0.18657292,95783.0,95777.0,0.054217]
[1736329744856,0.18657292,95783.0,95777.0,0.052217]
[1736329745156,0.18657292,95783.0,95780.0,0.002]
[1736329745756,0.18657292,95783.0,95777.0,0.054217]
[1736329747261,0.18657292,95782.0,95777.0,0.054217]
[1736329747451,0.18657292,95782.0,95780.0,0.002]
[1736329748260,0.06049045,95781.0,95777.0,0.052217]
[1736329748446,0.06049045,95781.0,95777.0,0.054217]
[1736329748651,0.052216,95779.0,95777.0,0.002]
[1736329750860,0.052217,95777.0,95776.0,0.47963359]
[1736329751062,0.052217,95777.0,95776.0,0.47903359]
[1736329752254,0.11270745,95777.0,95776.0,0.47903359]
[1736329752561,0.11270745,95777.0,95776.0,0.48103359]
[1736329753067,0.06049045,95777.0,95776.0,0.48103359]
[1736329754454,0.06049045,95782.0,95776.0,0.48103359]
[1736329755364,0.13718103,95782.0,95776.0,0.48103359]
[1736329756255,0.18939603,95782.0,95776.0,0.48103359]
[1736329758164,0.13718103,95781.0,95776.0,0.48103359]
[1736329758556,0.18939603,95781.0,95776.0,0.48103359]
[1736329759270,0.052216,95779.0,95776.0,0.48103359]
[1736329759467,0.052217,95778.0,95776.0,0.48103359]
[1736329759668,0.139217,95778.0,95776.0,0.48103359]
[1736329760761,0.06049045,95777.0,95776.0,0.48103359]
[1736329763170,0.06049045,95777.0,95776.0,0.01307359]
[1736329770171,0.27832713,95777.0,95776.0,0.01307359]
[1736329771174,0.06049045,95777.0,95776.0,0.01307359]
[1736329772277,0.052217,95778.0,95776.0,0.01307359]
[1736329773476,0.06049045,95777.0,95776.0,0.01307359]
[1736329774574,0.27002477,95778.0,95776.0,0.01307359]
[1736329774779,0.052217,95778.0,95776.0,0.01307359]
[1736329776579,0.052217,95778.0,95776.0,0.01107359]
[1736329776782,0.052217,95778.0,95776.0,0.002]
[1736329777371,0.06049439,95777.0,95776.0,0.002]
[1736329779567,0.06049439,95777.0,95771.0,0.06296361]
[1736329779773,0.06049439,95777.0,95776.0,0.002]
[1736329780682,0.13718624,95777.0,95776.0,0.002]
[1736329781176,0.13718624,95777.0,95771.0,0.06296361]
[1736329781384,0.13718624,95777.0,95771.0,0.06496361]
[1736329781887,0.21780777,95772.0,95771.0,0.06496361]